Workbook

Sheet Context Inputs
C1: The economic impact of Zycus AP Automation solution
B4: About Zycus AP RoI Calculator:
B5: The tool provides estimates for savings associated with the digital transformation of the accounts payable (AP automation) function in any organization, subject to the accuracy and availability of inputs.
B8: Organization-specific parameters :
B9: Please input the baseline estimates for your organization to gauge the overall size and volume of AP operations and finances involved.
B11: Business metrics | D11: Inputs | E11: Definitions
B12: 1. Number of invoices processed per year | D12: 200000 | E12: Total number of invoices processed annually
B13: 2. Number of accounts payable FTE's per month | D13: 22 | E13: Total number of full time equivalent (FTE) employees required at present
B16: 3. % Split of invoice processing | D16: Inputs
B17: 3.a). % paper and PDF invoices | D17: 0.8 | E17: The % split of invoices received on an annual basis. The total of (3.a., 3.b., 3.c.) should be equal to 100%.
B18: 3.b) % scanned & image invoices | D18: 0.1
B19: 3.c). % electronic (XML/EDI) invoices | D19: 0.1
A25: ©Zycus. All rights reserved. Unauthorized reproduction prohibited.

Sheet Results (ROI)
E3: Estimated savings via Zycus AP automation solution
C6: Industry Benchmarks | N6: Total savings over a 3-year period :
C8: Nature of invoice | F8: Process costs per invoice
C9: % Electronic (XML/EDI) invoice | F9: 2.13
C10: % Scanned/imaged invoice | F10: 3.93
C11: % Paper and PDF invoice | F11: 6.39
C15: Average no. of invoices processed per FTE/year | N15: Process & FTE Savings after Smart e-invoicing solution (in 3 years)
C17: Avg. number of invoices processed per FTE per year increased by:
C18: =Calculations!E67 -> 1.65331
B25: E-invoicing Maturity Model
C28: The E-invoicing Maturity model helps define the current stage of process maturity of the AP function with regards to its invoice processing and management. For AP function, based on the maturity of invoice processing and management, the below four maturity stages can be defined:
C37: Current Maturity Model Classification
C39: =IF('Context Inputs'!$D$19<0.2,backend!Q4,IF('Context Inputs'!$D$19<0.5,backend!Q5,IF('Context Inputs'!$D$19<0.9,backend!Q6,backend!Q7))) -> Stage 1: Nascent Stage
B42: E-invoicing Maturity Model Stages
B43: % of invoices in E- invoicing format | C43: Stage | E43: Stage Name
B45: 0-20 | C45: Stage 1: Lower tier | E45: Nascent Stage | G45: At this stage, all invoices are received and stored in the form of paper. AP processes including invoice capture, invoice matching, invoice workflow and approval, exception handling, payment, discount management, and supplier management are disconnected and completely manual.
B48: 20-50 | C48: Stage 2: Mid tier | E48: Evolving Stage | G48: At this stage, invoice capture is through OCR engines. The paper invoices are scanned and converted into an image or pdf format. Data is extracted using OCR engines and fed into an ERP system.
B50: 50-90 | C50: Stage 3: Top tier | E50: Mainstream | G50: At this stage, there may be fragmented, but integrated software products working in tandem or a single software product enabling invoice capture, workflow management, invoice matching and payment integrated tightly with an ERP system.
B52: 90+ | C52: Stage 4: Elite tier | E52: Best in Class | G52: At this stage, AP processes are automated and efficient. Suppliers are active participants in the process and most of the invoices submitted are in electronic format. Data across procurement, suppliers, and Account Payables is tightly integrated and centralized enabling insightful reporting and analystics for strategic decisioning to capture financial gains.
B55: Source: Case study: E-invocing maturity Models for AP process - Improvement Evalution of the current AP process state to plan efficient change management strategies
I82: For more information
I84: Website: | J84: www.zycus.com
I85: Email: | J85: jessica.lim@procurementdiaries.com
B86: ©Zycus. All rights reserved. Unauthorized reproduction prohibited.

Sheet Calculations (hidden)
A1: ROI Calculator
A10: Customer Input | D10: Baseline ( not to be shown to the customer)
A11: 1. Number of invoices per year | B11: ='Context Inputs'!D12 -> 200000
A12: 2. Number of Accounts Payable FTEs | B12: ='Context Inputs'!D13 -> 22 | D12: Invoice Formats | E12: Number per Year
A13: 3. Avg. annual cost per FTE (C&B) | B13: 20000 | D13: Paper and email/PDFs: | E13: =B11*B16 -> 160000
A14: Total annual FTE cost: | B14: =B12*B13 -> 440000 | D14: Scanned/imaged: | E14: =B11*B17 -> 20000
A15: 4. Annual AP systems/outsourcing cost | B15: 0 | D15: Electronic (XML/EDI/Portal) | E15: =B11*B18 -> 20000
A16: 5a. % Paper and PDF invoices | B16: ='Context Inputs'!D17 -> 0.8
A17: 5b. % Scanned/imaged invoices | B17: ='Context Inputs'!D18 -> 0.1 | D17: Totals | E17: =SUM(E13:E16) -> 200000
A18: 5d. % Electronic (XML/EDI) | B18: ='Context Inputs'!D19 -> 0.1 | D18: Annual Invoice Process Cost Calculations (three versions)
A19: Total invoice formats (should be 100%): | B19: =SUM(B16:B18) -> 1 | D19: A. Best in class process cost ($2.18) | F19: =B11*2.18 -> 436000
D20: B. Per calculated process cost (#6 alternative) | F20: =B11*B21 -> 440000
A21: 6. Avg. process cost using AP annual costs | B21: =(B14+B15)/B11 -> 2.2 | D21: C. Per industry avg. process cost of $4.57/invoice1 | F21: =B11*4.57 -> 914000
D22: (Best-in-Class invoice process cost is $2.18)1
D24: IMPACT OF EINVOICING2
D25: Average Process Cost Savings per Invoice when Transitioned to E-Invoicing
D26: Paper and eMail PDFs: | E26: =6.39-2.13 -> 4.26
D27: Invoice Scan Capture | E27: =(3.93-2.13) -> 1.8
A30: 1The Hackett Group 2019 Purchase-to-Pay (P2P) Performance Study 2 The Hackett Group 2019 Purchase-to-Pay (P2P) Performance Study
A33: E-INVOICING YEAR 1 POTENTIAL PROCESS SAVINGS
A34: TYPE OF INVOICES | B34: % of Invoices | D34: Number per Year | E34: # Moved to Electronic | F34: Process Savings
A35: Paper and email/PDFs: | B35: =0.2*B16 -> 0.16 | D35: =B35*B11 -> 32000 | E35: =E13-D35 -> 128000 | F35: =E35*E26 -> 545280
A36: Scanned/imaged: | B36: =0.5*B17 -> 0.05 | D36: =B36*B11 -> 10000 | E36: =E14-D36 -> 10000 | F36: =E36*E27 -> 18000
A37: Electronic (XML/EDI): | B37: =1-B36-B35 -> 0.79 | D37: =B37*B11 -> 158000 | E37: N/A | F37: N/A
A38: Totals: | B38: =SUM(B35:B37) -> 1 | D38: =SUM(D35:D37) -> 200000 | E38: =SUM(E35:E36) -> 138000 | F38: =SUM(F35:F36) -> 563280
A40: Year 1 invoice process cost, based on version B (your original calculated process cost): | F40: =(F20-F38)/D38 -> -0.6164
A42: E-INVOICING YEAR 2 POTENTIAL PROCESS SAVINGS
A43: TYPE OF INVOICES | B43: % of Invoices | D43: Number per Year | E43: # Moved to Electronic | F43: Process Savings
A44: Paper and email/PDFs: | B44: =0.8*B35 -> 0.128 | D44: =B44*B11 -> 25600 | E44: =E13-D44 -> 134400 | F44: =E44*E26 -> 572544
A45: Scanned/imaged: | B45: =0.3*B36 -> 0.015 | D45: =B45*B11 -> 3000 | E45: =E14-D45 -> 17000 | F45: =E45*E27 -> 30600
A46: Electronic (XML/EDI): | B46: =1-B45-B44 -> 0.857 | D46: =B46*B11 -> 171400 | E46: N/A | F46: N/A
A47: Totals: | B47: =SUM(B44:B46) -> 1 | D47: =SUM(D44:D46) -> 200000 | E47: =SUM(E44:E45) -> 151400 | F47: =SUM(F44:F45) -> 603144
A49: Year 2 invoice process cost, based on version B (your original calculated process cost): | F49: =(F20-F47)/D47 -> -0.81572
A51: E-INVOICING YEAR 3 POTENTIAL PROCESS SAVINGS
A52: TYPE OF INVOICES | B52: % of Invoices | D52: Number per Year | E52: # Moved to Electronic | F52: Process Savings
A53: Paper and email/PDFs: | B53: =0.85*B44 -> 0.1088 | D53: =B53*B11 -> 21760 | E53: =E13-D53 -> 138240 | F53: =E53*E26 -> 588902.4
A54: Scanned/imaged: | B54: 0 | D54: =B54*B11 -> 0 | E54: =E14-D54 -> 20000 | F54: =E54*E27 -> 36000
A55: Electronic (XML/EDI): | B55: =1-B54-B53 -> 0.8912 | D55: =B55*B11 -> 178240 | E55: N/A | F55: N/A
A56: Totals: | B56: =SUM(B53:B55) -> 1 | D56: =SUM(D53:D55) -> 200000 | E56: =SUM(E53:E54) -> 158240 | F56: =SUM(F53:F54) -> 624902.4
A58: Year 3 invoice process cost, based on version B (your original calculated process cost): | F58: =(F20-F56)/D56 -> -0.924512
A60: Process savings grand total after three years (based on different %s of invoice formats): | F60: =SUM(F56,F47,F38) -> 1791326.4
A62: Potential Impact on AP FTEs
B63: Today | D63: World-Class Average1 | E63: Difference/Savings
A64: Number of AP FTEs: | B64: =B12 -> 22 | D64: =B11/D67 -> 8.291530202 | E64: =B64-D64 -> 13.7084698 | F64: FTEs that could be eliminated or redirected
A65: Average annual cost per AP FTE: | B65: =B13 -> 20000 | D65: =B13 -> 20000 | E65: N/A
A66: Total annual AP FTE cost: | B66: =B14 -> 440000 | D66: =D64*D65 -> 165830.604 | E66: =B66-D66 -> 274169.396 | F66: Savings if FTEs eliminated
A67: Avg. # invoices processed per FTE: | B67: =B11/B12 -> 9090.909091 | D67: 24121 | E67: =SUM(D67-B67)/B67 -> 1.65331

Sheet backend (hidden)
B2: SAVINGS | F2: FTE invoice processed | J2: Savings
B3: Process Saving | C3: =Calculations!F60 -> 1791326.4 | F3: Currently | G3: =Calculations!B67 -> 9090.909091 | J3: Year 1 | K3: =Calculations!F38 -> 563280 | O3: % of invoices in E- invoicing form | P3: Stage | Q3: Stage Name
B4: FTE Savings | C4: =Calculations!E66 -> 274169.396 | F4: with smart invoicing module (Industry benchmark) | G4: =Calculations!D67 -> 24121 | J4: Year 2 | K4: =Calculations!F47 -> 603144 | O4: 0-20 | P4: Stage 1: Lower tier | Q4: Stage 1: Nascent Stage
J5: Year 3 | K5: =Calculations!F56 -> 624902.4 | O5: 20-50 | P5: Stage 2: Mid tier | Q5: Stage 2: Evolving Stage
B6: Total Savings | C6: =C4+C3 -> 2065495.796 | O6: 50-90 | P6: Stage 3: Top tier | Q6: Stage 3: Mainstream
O7: 90+ | P7: Stage 4: Elite tier | Q7: Stage 4: Best in Class
E14: 0.8 | H14: 0.2 | K14: 0.15
C15: Present | E15: Year 1 | H15: Year 2 | K15: Year 3
C16: % split | D16: Invoice count | E16: % split | F16: Invoice count | G16: Savings | H16: % split | I16: Invoice count | J16: Savings | K16: % split | L16: Invoice count | M16: Savings
B17: 3.a. % paper and pdf invoices | C17: =Calculations!B16 -> 0.8 | D17: 400000 | E17: =C17*0.2 -> 0.16 | F17: 100000 | G17: 1278000 | H17: =E17*0.8 -> 0.128 | I17: 50000 | J17: 1491000 | K17: =H17*0.85 -> 0.1088 | L17: 25000 | M17: 1597500
B18: 4.a. % scanned, image invoices | C18: =Calculations!B17 -> 0.1 | D18: 50000 | E18: =C18*0.5 -> 0.05 | F18: 25000 | G18: 45000 | H18: =E18*0.3 -> 0.015 | I18: 0 | J18: 90000 | K18: 0 | L18: 0 | M18: 90000
B19: 5.a. % electronic (XML/EDI) | C19: =Calculations!B18 -> 0.1 | D19: 50000 | E19: =1-E18-E17 -> 0.79 | F19: 375000 | H19: 0.9 | I19: 450000 | K19: 0.95 | L19: 475000
D23: %electronic | F23: %scanned/image invoices | H23: %paper & pdf invoices
C24: Present split | D24: =C19 -> 0.1 | F24: =C18 -> 0.1 | H24: =C17 -> 0.8
C25: shifted to electronic in year-1 | D25: =D24+E18 -> 0.15 | F25: =C18-E18 -> 0.05 | G25: =E17 -> 0.16 | H25: =H24-E17 -> 0.64
C26: Year-1 split | D26: =E19 -> 0.79 | F26: =E18 -> 0.05 | H26: =E17 -> 0.16
C27: shifted to electronic in year-2 | E27: =D26 -> 0.79 | F27: =E18-H18 -> 0.035 | G27: =E17-H27 -> 0.128 | H27: =H26-H17 -> 0.032
C28: Year-2 split | D28: =D26+F27+H27 -> 0.857 | F28: =H18 -> 0.015 | H28: =H17 -> 0.128
C29: Reduced Y3 | D29: =D28 -> 0.857 | E29: =F28-F29 -> 0 | F29: =H18-K18 -> 0.015 | G29: =H28-H29 -> 0.1088 | H29: =H17-K17 -> 0.0192
C30: Final split in Year-3 | D30: =D29+H29+F29 -> 0.8912 | F30: =K18 -> 0 | H30: =K17 -> 0.1088
